bitfinex-derivatives/quotes_BTCF0:USTF0_20241008
["timestamp","ask_amount","ask_price","bid_price","bid_amount"]
[1728393917596,0.1106354,62674.0,62673.0,0.018]
[1728393918200,0.0308304,62674.0,62673.0,0.097807]
[1728393918497,0.079801,62678.0,62674.0,0.079805]
[1728393918706,0.079804,62676.0,62675.0,0.079804]
[1728393918894,0.00239412,62679.0,62673.0,0.018]
[1728393919094,0.259805,62674.0,62673.0,0.018]
[1728393919503,0.079814,62667.0,62666.0,0.3608]
[1728393919707,0.11064656,62667.0,62666.0,0.3608]
[1728393920704,0.11064656,62667.0,62666.0,0.440616]
[1728393920908,0.079812,62670.0,62669.0,0.079811]
[1728393921103,0.11064462,62670.0,62669.0,0.079811]
[1728393921617,0.03083262,62670.0,62669.0,0.079811]
[1728393922399,0.440602,62677.0,62676.0,0.079803]
[1728393922601,0.47143363,62677.0,62676.0,0.079803]
[1728393924008,0.47243363,62677.0,62676.0,0.085803]
[1728393924508,0.39263163,62677.0,62676.0,0.089803]
[1728393924899,0.03183163,62677.0,62676.0,0.089803]
[1728393925099,0.001,62677.0,62676.0,0.121403]
[1728393925505,0.001,62677.0,62676.0,0.600043]
[1728393926007,0.001,62677.0,62676.0,1.200043]
[1728393928011,0.001,62677.0,62676.0,1.22310146]
[1728393928905,0.001,62677.0,62676.0,0.14446146]
[1728393929114,0.001,62677.0,62676.0,0.32446146]
[1728393930709,0.001,62677.0,62676.0,1.40310146]
[1728393932508,0.079775,62699.0,62688.0,0.079787]
[1728393932805,0.079778,62696.0,62694.0,0.44058]
[1728393933010,0.0307,62700.0,62694.0,0.44058]
[1728393933312,0.11886382,62699.0,62696.0,0.08414313]
[1728393933616,0.06989091,62698.0,62697.0,0.079776]
[1728393933803,0.06989091,62698.0,62697.0,0.259776]
[1728393934006,0.06989091,62698.0,62697.0,1.338256]
[1728393934204,0.16767366,62699.0,62697.0,0.079776]
[1728393934407,0.06989091,62698.0,62695.0,0.3608]
[1728393934611,0.079777,62696.0,62695.0,0.3608]
[1728393934807,0.19863206,62696.0,62695.0,0.3608]
[1728393935610,0.22943384,62696.0,62695.0,0.3608]
[1728393935811,0.34908322,62696.0,62695.0,0.3608]
[1728393936015,0.38815151,62696.0,62695.0,0.3608]
[1728393936211,0.06988561,62696.0,62695.0,0.5408]
[1728393936418,0.06988561,62696.0,62695.0,0.620579]
[1728393936623,0.06988561,62696.0,62695.0,0.5408]
[1728393936818,0.06988561,62696.0,62695.0,0.620579]
[1728393937022,0.07388561,62696.0,62695.0,0.621579]
[1728393937332,0.07388561,62696.0,62695.0,1.101099]
[1728393937333,0.03481732,62696.0,62695.0,1.101099]
[1728393937805,0.03481732,62696.0,62695.0,1.100099]
[1728393938011,0.03681732,62696.0,62695.0,1.101099]
[1728393938317,0.03681732,62696.0,62695.0,1.701099]
[1728393938521,0.33878654,62715.0,62708.0,0.079762]
[1728393938522,0.079759,62711.0,62708.0,0.079762]
[1728393938724,0.08802504,62710.0,62709.0,0.079761]
[1728393939019,0.08802504,62710.0,62709.0,0.259761]
[1728393939220,0.03906273,62710.0,62707.0,0.3608]
[1728393939413,0.08801986,62709.0,62708.0,0.079762]
[1728393939612,0.08801986,62709.0,62708.0,0.259762]
[1728393939813,0.08801986,62709.0,62708.0,0.080762]
[1728393940017,0.08801986,62709.0,62708.0,0.081762]
[1728393940423,0.004,62711.0,62708.0,0.080762]
[1728393940424,0.07976,62710.0,62708.0,0.080762]
[1728393940608,0.07976,62710.0,62708.0,0.002]
[1728393940812,0.07976,62710.0,62709.0,0.079761]
[1728393941019,0.18,62712.0,62708.0,0.081762]
[1728393941222,0.079761,62709.0,62708.0,0.081762]
[1728393941414,0.18,62712.0,62708.0,0.002]
[1728393941720,0.079761,62709.0,62708.0,0.081762]
[1728393941912,0.004,62710.0,62708.0,0.002]
[1728393942111,0.079761,62709.0,62708.0,0.002]
[1728393942721,0.079761,62709.0,62708.0,0.081762]
[1728393943322,0.079759,62711.0,62709.0,0.079761]
[1728393943526,0.07976,62710.0,62709.0,0.079761]
[1728393944124,0.079761,62709.0,62708.0,0.002]
[1728393944424,0.002,62709.0,62708.0,0.002]
[1728393944623,0.002,62709.0,62708.0,0.3618]
[1728393944828,0.002,62709.0,62708.0,0.441562]
[1728393945524,0.002,62710.0,62709.0,0.001]
[1728393945728,0.002,62710.0,62709.0,0.181]
[1728393945927,0.002,62710.0,62709.0,0.260761]
[1728393947128,0.0328,62715.0,62714.0,0.079754]
[1728393947330,0.112553,62715.0,62714.0,0.079754]
[1728393948133,0.079759,62711.0,62709.0,0.10776]
[1728393948314,0.2128,62715.0,62709.0,0.09376]
[1728393948515,0.292553,62715.0,62714.0,0.014]
[1728393948719,0.292553,62715.0,62704.0,0.02246901]
[1728393948720,0.079762,62709.0,62704.0,0.02246901]
[1728393948916,0.079762,62709.0,62708.0,0.079762]
[1728393949520,0.079765,62706.0,62705.0,0.079765]
[1728393949833,0.07977,62702.0,62698.0,0.079774]
[1728393950029,0.0315,62701.0,62690.0,0.18]
[1728393950221,0.079774,62699.0,62690.0,0.18]
[1728393950416,0.0315,62701.0,62688.0,0.079787]
[1728393950421,0.0315,62701.0,62695.0,0.18]
[1728393950616,0.0315,62701.0,62700.0,0.079772]
[1728393952023,0.0315,62701.0,62700.0,0.093772]
[1728393952430,0.06231672,62701.0,62700.0,0.093772]
[1728393952631,0.0315,62701.0,62700.0,0.093772]
[1728393953233,0.06331656,62701.0,62700.0,0.107772]
[1728393953532,0.06331565,62701.0,62700.0,0.105772]
[1728393953720,0.06331565,62701.0,62700.0,0.104772]
[1728393953721,0.06231565,62701.0,62700.0,0.104772]
[1728393953925,0.0633161,62701.0,62700.0,0.104772]
[1728393954231,0.0633161,62701.0,62700.0,0.092772]
[1728393954424,0.0633161,62701.0,62700.0,0.107772]
[1728393955136,0.0633161,62701.0,62700.0,0.105772]
[1728393955526,0.0325,62701.0,62700.0,0.105772]
[1728393955726,0.112271,62701.0,62700.0,0.105772]
[1728393956228,0.112271,62701.0,62694.0,0.36188]
[1728393956229,0.653071,62701.0,62694.0,0.36188]
[1728393956427,0.079778,62696.0,62695.0,0.079778]
[1728393956826,0.079778,62696.0,62686.0,0.5408]
[1728393957024,0.079782,62693.0,62692.0,0.079782]
[1728393957633,0.079782,62693.0,62689.0,0.079785]
[1728393957634,0.18,62693.0,62689.0,0.079785]
[1728393957823,0.032,62692.0,62689.0,0.079785]
[1728393958027,0.079789,62688.0,62686.0,0.45459]
[1728393958331,0.079784,62691.0,62688.0,0.079787]
[1728393958635,0.079786,62689.0,62688.0,0.079787]
[1728393959433,0.032,62692.0,62686.0,0.3608]
[1728393959633,0.032,62692.0,62686.0,0.44059]
[1728393960134,0.080788,62688.0,62686.0,0.45359]
[1728393960334,0.001,62688.0,62686.0,0.3738]
[1728393960538,0.001,62688.0,62687.0,0.079789]
[1728393960933,0.112684,62691.0,62686.0,0.3738]
[1728393961134,0.112684,62691.0,62688.0,0.079787]
[1728393961135,0.079785,62690.0,62688.0,0.079787]
[1728393962841,0.079785,62690.0,62689.0,0.079786]
[1728393963037,0.0329,62691.0,62687.0,0.013]
[1728393963240,0.079788,62688.0,62687.0,0.013]
[1728393963535,0.14968721,62688.0,62687.0,0.079789]
[1728393964838,0.079792,62685.0,62684.0,0.079792]
[1728393965043,0.06989921,62685.0,62684.0,0.079792]
[1728393965244,0.06989921,62685.0,62683.0,0.079794]
[1728393965245,0.06990223,62685.0,62683.0,0.079794]
[1728393965443,0.06990223,62684.0,62683.0,0.079794]
[1728393965640,0.03082465,62684.0,62683.0,0.079794]
[1728393966146,0.002,62688.0,62680.0,0.3608]
[1728393966147,0.001,62685.0,62680.0,0.3608]
[1728393966445,0.03082455,62684.0,62683.0,0.079794]
[1728393966842,0.03182455,62684.0,62683.0,0.081794]
[1728393967354,0.03182455,62684.0,62683.0,0.079794]
[1728393967355,0.03082455,62684.0,62683.0,0.079794]
[1728393967735,0.03182455,62684.0,62683.0,0.092794]
[1728393967940,0.01782455,62684.0,62683.0,0.092794]
[1728393969038,0.01882455,62684.0,62683.0,0.094794]
[1728393969438,0.19882455,62684.0,62683.0,0.094794]
[1728393969647,0.09861755,62684.0,62683.0,0.094794]
[1728393970037,0.09761755,62684.0,62683.0,0.092794]
[1728393970237,0.13769342,62684.0,62683.0,0.094794]
[1728393970539,0.081793,62684.0,62683.0,0.081794]
[1728393970739,0.081793,62684.0,62683.0,0.094794]
[1728393971248,0.002,62684.0,62683.0,0.094794]
[1728393971646,0.081793,62684.0,62683.0,0.094794]
[1728393971843,0.261793,62684.0,62683.0,0.015]
[1728393973337,0.002,62684.0,62683.0,0.094794]
[1728393974038,0.002,62684.0,62683.0,0.274794]
[1728393974349,0.002,62684.0,62683.0,0.094794]
[1728393974550,0.002,62684.0,62683.0,0.081794]
[1728393974736,0.002,62684.0,62683.0,0.094794]
[1728393975947,0.081793,62684.0,62683.0,0.094794]
[1728393976742,0.081793,62684.0,62683.0,0.015]
[1728393978142,0.079795,62682.0,62681.0,1e-08]
[1728393978344,0.259795,62682.0,62681.0,1e-08]
[1728393978647,1.3692239,62682.0,62681.0,1e-08]
[1728393979146,0.079807,62673.0,62672.0,0.3608]
[1728393979347,0.259807,62673.0,62672.0,0.3608]
[1728393979649,0.079817,62667.0,62666.0,0.1025236]
[1728393979843,0.079817,62667.0,62666.0,0.079815]
[1728393980744,0.079818,62664.0,62663.0,0.38398446]
[1728393980948,0.259818,62664.0,62663.0,0.38398446]
[1728393981144,0.259818,62664.0,62663.0,0.3608]
[1728393981344,0.079822,62661.0,62660.0,0.079823]
[1728393981547,0.079823,62660.0,62659.0,0.0023938]
[1728393981744,0.259823,62660.0,62659.0,0.0023938]
[1728393982151,0.259823,62660.0,62659.0,0.0822178]
[1728393982951,0.18,62663.0,62659.0,0.0023938]
[1728393983253,0.079823,62661.0,62659.0,0.0822178]
[1728393983447,0.18,62663.0,62659.0,0.0023938]
[1728393983649,0.259823,62660.0,62659.0,0.0023938]
[1728393983842,0.261823,62660.0,62659.0,0.0033938]
[1728393984043,0.261823,62660.0,62659.0,0.001]
[1728393984238,0.079831,62654.0,62650.0,0.02334776]
[1728393984551,0.079835,62651.0,62650.0,0.02334776]
[1728393984748,0.03,62653.0,62649.0,0.36188]
[1728393984949,0.259836,62650.0,62649.0,0.3608]
[1728393985447,0.079847,62643.0,62642.0,0.079846]
[1728393985652,0.079846,62643.0,62639.0,0.00239459]
[1728393985846,0.079846,62643.0,62642.0,0.079846]
[1728393986042,0.079844,62644.0,62639.0,0.08224459]
[1728393986248,0.079846,62642.0,62640.0,0.079848]
[1728393986452,0.079846,62642.0,62639.0,0.00239459]
[1728393986453,0.18,62641.0,62639.0,0.00239459]
[1728393986645,0.079849,62640.0,62639.0,0.00239459]
[1728393987543,0.079859,62632.0,62631.0,0.44066]
[1728393987750,0.259859,62632.0,62631.0,0.44066]
[1728393987951,0.259859,62632.0,62631.0,0.3608]
[1728393988152,0.079851,62639.0,62631.0,0.3608]
[1728393988350,0.079851,62639.0,62636.0,0.079853]
[1728393988553,0.18,62638.0,62631.0,0.3608]
[1728393988753,0.079854,62637.0,62631.0,0.3608]
[1728393989052,0.079854,62637.0,62635.0,0.079855]
[1728393989553,0.079854,62636.0,62635.0,0.079855]
[1728393990953,0.080854,62636.0,62635.0,0.079855]
[1728393991256,0.081854,62636.0,62635.0,0.079855]
[1728393991656,0.3608,62648.0,62635.0,0.440655]
[1728393991853,0.3608,62648.0,62647.0,0.07984]
[1728393991854,0.440638,62648.0,62647.0,0.07984]
[1728393993253,0.440638,62648.0,62647.0,0.08084]
[1728393993460,0.620638,62648.0,62647.0,0.08084]
[1728393993851,0.259838,62648.0,62647.0,0.08084]
[1728393995461,0.079836,62650.0,62648.0,0.079838]
[1728393995654,0.079836,62650.0,62649.0,0.079835]
[1728393996953,0.093836,62650.0,62649.0,0.079835]
[1728393998460,0.107836,62650.0,62649.0,0.079835]
[1728393998760,0.107836,62650.0,62646.0,0.079841]
[1728393998761,0.079843,62647.0,62646.0,0.079841]
[1728393999057,0.259843,62647.0,62646.0,0.079841]
[1728394000163,0.259843,62647.0,62646.0,0.081841]
[1728394000360,0.18,62647.0,62646.0,0.081841]
[1728394000865,0.18,62647.0,62646.0,0.080841]
[1728394001052,0.181,62647.0,62646.0,0.081841]
[1728394001261,0.182,62647.0,62646.0,0.081841]
[1728394001459,0.26184,62647.0,62646.0,0.081841]
[1728394001661,0.26084,62647.0,62646.0,0.080841]
[1728394001857,0.26184,62647.0,62646.0,0.081841]
[1728394003968,0.25984,62647.0,62646.0,0.079841]
[1728394004170,0.26184,62647.0,62646.0,0.081841]
[1728394005387,0.26084,62647.0,62646.0,0.080841]
[1728394005584,0.26184,62647.0,62646.0,0.081841]
[1728394007078,0.26084,62647.0,62646.0,0.080841]
[1728394007280,0.26184,62647.0,62646.0,0.081841]
[1728394007975,0.26184,62647.0,62646.0,0.002]
[1728394010175,0.29268481,62647.0,62646.0,0.002]
[1728394012072,0.079854,62636.0,62635.0,0.0321]
[1728394012271,0.259854,62636.0,62635.0,0.0321]
[1728394012479,0.29070267,62636.0,62635.0,0.0321]
[1728394012987,0.29070267,62636.0,62635.0,0.05519973]
[1728394013190,0.29070375,62636.0,62635.0,0.05519973]
[1728394013787,0.29070375,62636.0,62635.0,0.13505473]
[1728394013991,0.29170375,62636.0,62635.0,0.13605473]
[1728394014193,0.29170375,62636.0,62635.0,0.05619973]
[1728394014388,0.29270375,62636.0,62635.0,0.05619973]
[1728394015087,0.29270375,62636.0,62635.0,0.001]
[1728394015683,0.261854,62636.0,62635.0,0.001]
[1728394016680,0.261854,62636.0,62635.0,0.080855]
[1728394017899,0.002,62636.0,62635.0,0.080855]
[1728394019796,0.002,62636.0,62635.0,0.12857603]
[1728394020097,0.002,62636.0,62635.0,0.080855]
[1728394020887,0.002,62636.0,62635.0,0.14475868]
[1728394021087,0.002,62636.0,62635.0,0.080855]
[1728394021997,0.18,62659.0,62635.0,1.56244052]
[1728394022299,0.0317,62663.0,62639.0,0.04771577]
[1728394022300,0.3608,62641.0,62639.0,0.04771577]
[1728394022492,0.07985,62639.0,62638.0,0.12756677]
[1728394022685,0.07985,62639.0,62638.0,0.079851]
[1728394023995,0.08085,62639.0,62638.0,0.080851]
[1728394024197,0.08185,62639.0,62638.0,0.080851]
[1728394024594,0.08085,62639.0,62638.0,0.079851]
[1728394024797,0.08185,62639.0,62638.0,0.080851]
[1728394025386,0.1126973,62639.0,62638.0,0.080851]
[1728394026400,0.0318473,62639.0,62634.0,0.02293114]
[1728394026606,0.08085,62639.0,62638.0,0.001]
[1728394026897,0.11269835,62639.0,62638.0,0.002]
[1728394027391,0.11169835,62639.0,62638.0,0.001]
[1728394027591,0.079852,62637.0,62636.0,0.079853]
[1728394027793,0.11070035,62637.0,62636.0,0.079853]
[1728394029200,0.11070035,62637.0,62636.0,0.079854]
[1728394029201,0.11070235,62637.0,62636.0,0.079854]
[1728394030191,0.11270235,62637.0,62636.0,0.081854]
[1728394030607,0.081854,62637.0,62636.0,0.081854]
[1728394031005,0.081854,62637.0,62636.0,0.002]
[1728394033209,0.002,62637.0,62636.0,0.002]
[1728394033506,0.081852,62637.0,62636.0,0.081854]
[1728394033911,0.002,62637.0,62636.0,0.081854]
[1728394034908,0.081852,62637.0,62636.0,0.081854]
[1728394036807,0.442652,62637.0,62636.0,0.002]
[1728394037007,0.081852,62637.0,62636.0,0.002]
[1728394038710,0.20083859,62637.0,62636.0,0.002]
[1728394039215,0.20083859,62637.0,62636.0,0.081854]
[1728394041012,0.20083859,62637.0,62636.0,0.002]
[1728394041321,0.079865,62628.0,62611.0,0.3608]
[1728394041517,0.18,62620.0,62619.0,0.440675]
[1728394041820,0.32983802,62620.0,62619.0,0.440675]
[1728394042117,0.69063802,62620.0,62619.0,0.10337194]
[1728394042817,0.079875,62619.0,62616.0,0.02273971]
[1728394043016,0.19887403,62619.0,62615.0,0.07988]
[1728394043208,0.19887403,62619.0,62614.0,0.079882]
[1728394043914,0.19887403,62619.0,62604.0,0.033]
[1728394043915,0.19887403,62619.0,62612.0,0.02355218]
[1728394044112,0.079883,62613.0,62612.0,0.10343618]
[1728394044317,0.079888,62609.0,62608.0,0.079889]
[1728394044523,0.29073943,62609.0,62608.0,0.079889]
[1728394045606,0.259888,62609.0,62608.0,0.079889]
[1728394046527,0.260888,62609.0,62608.0,0.079889]
[1728394046815,0.261888,62609.0,62608.0,0.079889]
[1728394047213,0.002,62609.0,62608.0,0.079889]
[1728394050125,0.079866,62627.0,62619.0,0.079875]
[1728394050126,0.440675,62620.0,62619.0,0.079875]
[1728394050332,0.3608,62620.0,62619.0,0.079875]
[1728394051424,0.3628,62620.0,62619.0,0.079875]
[1728394053316,0.002,62620.0,62619.0,0.079875]
[1728394054726,0.002,62620.0,62619.0,0.10236708]
[1728394056335,0.002,62620.0,62619.0,0.28236708]
[1728394056723,0.002,62620.0,62619.0,0.64316708]
[1728394057428,0.002,62620.0,62619.0,0.46316708]
[1728394063948,0.002,62620.0,62619.0,0.94224708]
[1728394064543,0.00239581,62633.0,62632.0,0.079859]
[1728394064747,0.03324668,62633.0,62632.0,0.079859]
[1728394064948,0.079861,62630.0,62629.0,0.079863]
[1728394065141,0.079865,62627.0,62626.0,0.079866]
[1728394065449,0.11071587,62627.0,62626.0,0.079866]
[1728394065845,0.11071587,62627.0,62620.0,0.3608]
[1728394066044,0.079859,62632.0,62623.0,0.07987]
[1728394066045,0.07987,62624.0,62623.0,0.07987]
[1728394066250,0.11072087,62624.0,62623.0,0.07987]
[1728394066653,0.03085087,62624.0,62620.0,0.3608]
[1728394066954,0.079873,62621.0,62620.0,0.3608]
[1728394067155,0.32984139,62621.0,62620.0,0.3608]
[1728394067350,0.32984139,62621.0,62620.0,0.440674]
[1728394068247,0.07096839,62621.0,62620.0,0.443674]
[1728394068640,0.001,62621.0,62620.0,0.443674]
[1728394068948,0.001,62621.0,62620.0,0.082874]
[1728394069451,0.080873,62621.0,62620.0,0.082874]
[1728394069646,0.260873,62621.0,62620.0,0.082874]
[1728394069841,0.260873,62621.0,62620.0,0.003]
[1728394070039,0.261873,62621.0,62620.0,0.005]
[1728394070244,0.079883,62613.0,62612.0,0.079884]
[1728394071653,0.111083,62613.0,62612.0,0.081884]
[1728394072748,0.112083,62613.0,62612.0,0.081884]
[1728394073949,0.112083,62613.0,62612.0,0.002]
[1728394074255,0.144983,62613.0,62612.0,0.002]
[1728394075150,0.17584621,62613.0,62612.0,0.002]
[1728394075351,0.17584621,62613.0,62601.0,0.079896]
[1728394075352,0.079898,62602.0,62601.0,0.079896]
[1728394075553,0.079898,62602.0,62599.0,0.00239604]
[1728394075554,0.0799,62600.0,62599.0,0.1050339]
[1728394075854,0.47156782,62600.0,62599.0,0.00239604]
[1728394076047,1.55080782,62600.0,62599.0,0.00239604]
[1728394076244,0.07991,62592.0,62584.0,0.3608]
[1728394076448,0.079912,62590.0,62587.0,0.02291051]
[1728394076750,0.079912,62590.0,62589.0,0.440714]
[1728394078159,0.079908,62594.0,62593.0,0.079906]
[1728394078455,0.0329,62599.0,62589.0,0.5408]
[1728394078657,0.079904,62597.0,62596.0,0.079903]
[1728394078859,0.11077475,62597.0,62596.0,0.079903]
[1728394079448,0.079904,62597.0,62596.0,0.079903]
[1728394079648,0.259904,62597.0,62596.0,0.079903]
[1728394079855,0.079912,62593.0,62592.0,0.079909]
[1728394080049,0.620712,62593.0,62584.0,0.362]
[1728394080249,0.259913,62590.0,62589.0,0.079914]
[1728394080450,0.3608,62593.0,62584.0,0.3608]
[1728394080656,0.3608,62593.0,62592.0,0.07991]
[1728394080851,0.001,62594.0,62590.0,0.18]
[1728394081051,0.001,62597.0,62593.0,0.079909]
[1728394081249,0.079907,62594.0,62593.0,0.079909]
[1728394081448,0.259907,62594.0,62593.0,0.079909]
[1728394081756,0.079913,62590.0,62584.0,0.3608]
[1728394081949,0.079915,62588.0,62587.0,0.079914]
[1728394082864,0.001,62590.0,62589.0,0.079914]
[1728394083061,0.080912,62590.0,62589.0,0.079914]
[1728394083861,0.079912,62590.0,62589.0,0.079914]
[1728394084253,0.080912,62590.0,62589.0,0.079914]
[1728394084565,0.080912,62590.0,62586.0,0.079916]
[1728394084566,0.079918,62587.0,62586.0,0.079916]
[1728394084766,0.07992,62584.0,62583.0,0.079921]
[1728394084963,0.079918,62586.0,62579.0,0.079926]
[1728394085157,0.18,62582.0,62576.0,0.07993]
[1728394085354,0.18,62582.0,62575.0,0.08887321]
[1728394085664,0.18,62582.0,62581.0,0.079924]
[1728394085665,0.259923,62582.0,62581.0,0.079924]
[1728394086253,0.18,62582.0,62581.0,0.079924]
[1728394086453,0.001,62582.0,62581.0,0.079924]
[1728394086962,0.001,62584.0,62583.0,0.079921]
[1728394087164,0.440709,62593.0,62583.0,0.259921]
[1728394087360,0.3608,62593.0,62592.0,0.07991]
[1728394087551,0.079909,62593.0,62586.0,0.3608]
[1728394087753,0.079909,62593.0,62592.0,0.07991]
[1728394088264,0.18,62596.0,62595.0,0.079906]
[1728394088463,0.064,62600.0,62597.0,0.079904]
[1728394088464,0.18,62600.0,62597.0,0.079904]
[1728394088766,0.079903,62598.0,62596.0,0.079905]
[1728394088963,0.079903,62598.0,62597.0,0.079904]
[1728394089857,0.18,62600.0,62587.0,0.0644]
[1728394090055,0.001,62598.0,62597.0,0.079904]
[1728394090363,0.002,62598.0,62597.0,0.081904]
[1728394090756,0.392699,62601.0,62597.0,0.002]
[1728394090956,0.392699,62601.0,62600.0,0.0799]
[1728394091162,0.3128,62601.0,62600.0,0.0799]
[1728394091361,0.18,62604.0,62593.0,0.5408]
[1728394091567,0.0317,62609.0,62606.0,0.079892]
[1728394091568,0.079891,62607.0,62606.0,0.079892]
[1728394091855,0.18,62609.0,62601.0,0.0329]
[1728394091856,0.079894,62605.0,62601.0,0.0329]
[1728394092172,0.079897,62602.0,62601.0,0.112798]
[1728394092362,0.079897,62602.0,62601.0,0.079898]
[1728394092972,0.18,62604.0,62603.0,0.079896]
[1728394094167,0.079891,62608.0,62607.0,0.079891]
[1728394095058,0.259891,62608.0,62607.0,0.079891]
[1728394095869,0.260891,62608.0,62607.0,0.081891]
[1728394096070,0.080891,62608.0,62607.0,0.081891]
[1728394096364,0.001,62608.0,62607.0,0.081891]
[1728394096666,0.002,62608.0,62607.0,0.081891]
[1728394098668,0.03286303,62608.0,62607.0,0.081891]
[1728394099060,0.11275203,62608.0,62607.0,0.081891]
[1728394100367,0.03286303,62608.0,62607.0,0.081891]
[1728394102458,0.00239651,62610.0,62607.0,0.261891]
[1728394102672,0.00239651,62610.0,62609.0,0.079888]
[1728394103269,0.00239651,62610.0,62609.0,0.440688]
[1728394103462,0.00339651,62610.0,62609.0,0.440688]
[1728394104066,0.18,62622.0,62621.0,0.079873]
[1728394104267,0.0308573,62622.0,62621.0,0.079873]
[1728394104569,0.03085673,62622.0,62621.0,0.079873]
[1728394104771,0.21085673,62622.0,62621.0,0.079873]
[1728394105359,0.21085673,62622.0,62616.0,0.3608]
[1728394105562,0.03085673,62621.0,62618.0,0.079877]
[1728394105763,0.079875,62619.0,62618.0,0.079877]
[1728394106469,0.079878,62617.0,62616.0,0.38365359]
[1728394106670,0.079878,62617.0,62616.0,0.10273259]
[1728394106864,0.079878,62617.0,62616.0,0.079879]
[1728394107969,0.009,62619.0,62616.0,0.003]
[1728394108166,0.088876,62619.0,62618.0,0.079877]
[1728394108466,0.009,62619.0,62618.0,0.079877]
[1728394108676,0.088875,62619.0,62618.0,0.079877]
[1728394108869,0.079875,62619.0,62618.0,0.079877]
[1728394109472,0.088875,62619.0,62618.0,0.079877]
[1728394109669,0.095875,62619.0,62618.0,0.079877]
[1728394110269,0.088875,62619.0,62618.0,0.079877]
[1728394110474,0.097875,62619.0,62618.0,0.079877]
[1728394111170,0.018,62619.0,62618.0,0.079877]
[1728394113070,0.018,62619.0,62616.0,0.0318]
[1728394113071,0.079878,62617.0,62616.0,0.0318]
[1728394113271,0.03085806,62617.0,62616.0,0.111679]
[1728394114175,0.03085725,62617.0,62616.0,0.111679]
[1728394114366,0.03085725,62617.0,62616.0,0.114679]
[1728394116674,0.11073525,62617.0,62616.0,0.114679]
[1728394116875,0.11073525,62617.0,62616.0,0.0348]
[1728394117177,0.14985308,62617.0,62616.0,0.0348]
[1728394117568,0.14985308,62617.0,62616.0,0.114679]
[1728394118974,0.14985522,62617.0,62616.0,0.114679]
[1728394121080,0.079878,62617.0,62616.0,0.114679]
[1728394121979,0.079878,62617.0,62616.0,0.0348]
[1728394122176,0.259878,62617.0,62616.0,0.003]
[1728394122872,0.2907382,62617.0,62616.0,0.003]
[1728394123384,0.3229382,62617.0,62616.0,0.003]
[1728394123768,0.079891,62607.0,62605.0,0.3608]
[1728394123974,0.259891,62607.0,62605.0,0.3608]
[1728394124178,0.29075495,62607.0,62602.0,0.02291255]
[1728394125478,0.29075495,62607.0,62604.0,0.079894]
[1728394125986,0.079893,62605.0,62604.0,0.079894]
[1728394126186,0.11075695,62605.0,62604.0,0.079894]
[1728394126483,0.079893,62605.0,62604.0,0.079894]
[1728394126886,0.081891,62607.0,62606.0,0.079892]
[1728394127581,0.080891,62607.0,62606.0,0.079892]
[1728394127972,0.11175509,62607.0,62606.0,0.079892]
[1728394128685,0.11075509,62607.0,62606.0,0.079892]
[1728394129678,0.11175509,62607.0,62606.0,0.079892]
[1728394129879,0.11275509,62607.0,62606.0,0.079892]
[1728394131276,0.11175509,62607.0,62606.0,0.079892]
[1728394131482,0.03286409,62607.0,62606.0,0.440692]
[1728394132082,0.03186409,62607.0,62606.0,0.440692]
[1728394132293,0.03286409,62607.0,62606.0,0.440692]
[1728394132979,0.03286409,62607.0,62606.0,0.3608]
[1728394132980,0.11275509,62607.0,62606.0,0.3608]
[1728394133181,0.03286409,62607.0,62606.0,0.620692]
[1728394135995,0.002,62607.0,62606.0,0.620692]
[1728394137590,0.002,62607.0,62606.0,0.440692]
[1728394140094,0.261891,62607.0,62606.0,0.3608]
[1728394140284,0.081891,62607.0,62606.0,0.3608]
[1728394140485,0.081891,62607.0,62606.0,0.440692]
[1728394140691,0.002,62607.0,62606.0,0.440692]
[1728394142094,0.081891,62607.0,62606.0,0.3608]
[1728394143297,0.081891,62607.0,62606.0,0.440692]
[1728394147800,0.079896,62603.0,62602.0,0.02291255]
[1728394147989,0.079896,62603.0,62595.0,0.3608]
[1728394147990,0.18,62604.0,62595.0,0.3608]
[1728394148197,0.0619,62606.0,62595.0,0.3608]
[1728394148503,0.079897,62603.0,62602.0,0.079896]
[1728394148798,0.11076286,62603.0,62602.0,0.079896]
[1728394148999,0.080897,62603.0,62602.0,0.079896]
[1728394149202,0.002,62603.0,62602.0,0.079896]
[1728394151188,0.07198949,62603.0,62602.0,0.079896]
[1728394152896,0.07198949,62603.0,62602.0,0.10302096]
[1728394156302,0.15188549,62603.0,62602.0,0.10302096]
[1728394157208,0.079905,62597.0,62596.0,0.079904]
[1728394157407,0.079905,62597.0,62593.0,0.079908]
[1728394157408,0.079909,62594.0,62593.0,0.079908]
[1728394157609,0.32989849,62594.0,62593.0,0.079908]
[1728394158109,0.259909,62594.0,62593.0,0.079908]
[1728394158309,0.079911,62591.0,62590.0,0.46395329]
[1728394159602,0.259911,62591.0,62590.0,0.38404129]
[1728394159913,0.080907,62594.0,62593.0,0.079909]
[1728394160700,0.079907,62594.0,62593.0,0.079909]
[1728394161112,0.079904,62597.0,62595.0,0.079905]
[1728394161301,0.3608,62601.0,62592.0,0.18]
[1728394161503,0.079902,62599.0,62598.0,0.079902]
[1728394162217,0.0311,62602.0,62601.0,0.079898]
[1728394162403,0.110997,62602.0,62601.0,0.079898]
[1728394162808,0.0311,62602.0,62601.0,0.079898]
[1728394163106,0.110997,62602.0,62601.0,0.079898]
[1728394163415,0.079897,62602.0,62601.0,0.079898]
[1728394163908,0.080897,62602.0,62601.0,0.079898]
[1728394164310,0.081897,62602.0,62601.0,0.079898]